bitfinex/quotes_SOLUSD_20220104
["timestamp","ask_amount","ask_price","bid_price","bid_amount"]
[1641297796688,108.16630069,171.95,171.83,9.89669368]
[1641297797089,108.16630069,171.95,171.83,8.47]
[1641297797992,116.89630069,171.95,171.8,95.12669368]
[1641297798191,116.89630069,171.95,171.8,94.2]
[1641297798591,116.89630069,171.95,171.8,0.5]
[1641297798790,141.02970069,171.95,171.8,0.5]
[1641297798992,141.02970069,171.95,171.78,1.93209461]
[1641297799215,141.02970069,171.95,171.78,1.43209461]
[1641297799420,141.02970069,171.95,171.78,1.93209461]
[1641297800323,141.02970069,171.95,171.78,2.19209461]
[1641297801826,141.02970069,171.95,171.79,1.3559]
[1641297802226,141.02970069,171.95,171.79,3.28259368]
[1641297804830,140.76970069,171.95,171.79,3.28259368]
[1641297805032,140.76970069,171.95,171.79,3.54259368]
[1641297805630,140.76970069,171.95,171.79,3.28259368]
[1641297805833,140.76970069,171.95,171.79,3.54259368]
[1641297806232,141.02970069,171.95,171.79,3.28259368]
[1641297806932,141.02970069,171.95,171.79,28.29989368]
[1641297807731,141.02970069,171.95,171.79,28.03989368]
[1641297808733,141.02970069,171.95,171.79,1.92669368]
[1641297809134,142.45639437,171.95,171.79,1.92669368]
[1641297809333,142.45639437,171.95,171.79,1.42669368]
[1641297811636,144.09510259,171.95,171.79,1.42669368]
[1641297811837,143.83510259,171.95,171.79,1.42669368]
[1641297812537,142.19639437,171.95,171.79,1.42669368]
[1641297813143,144.09510259,171.95,171.78,8.47540093]
[1641297813340,144.09510259,171.95,171.78,0.00540093]
[1641297814441,105.84,171.94,171.78,0.00540093]
[1641297814641,8.47,171.93,171.78,0.00540093]
[1641297814840,108.7531251,171.92,171.78,0.00540093]
[1641297815040,8.47,171.91,171.78,0.00540093]
[1641297815243,3.83934269,171.89,171.78,0.00540093]
[1641297815441,30.11923156,171.87,171.78,0.00540093]
[1641297815641,2.81291196,171.85,171.78,0.00540093]
[1641297815841,104.3774,171.84,171.78,0.00540093]
[1641297816043,104.6374,171.84,171.78,0.00540093]
[1641297816241,105.1374,171.84,171.78,0.00540093]
[1641297816441,2.2633591,171.82,171.78,0.00540093]
[1641297816841,3.0233591,171.82,171.78,0.00540093]
[1641297817243,22.7452175,171.8,171.78,0.00540093]
[1641297817443,8.69475518,171.79,171.78,0.00540093]
[1641297817870,9.45475518,171.79,171.78,0.00540093]
[1641297818067,10.71885518,171.79,171.78,0.00540093]
[1641297821770,10.45885518,171.79,171.78,0.00540093]
[1641297823072,10.71885518,171.79,171.78,0.00540093]
[1641297824670,10.45885518,171.79,171.78,0.00540093]
[1641297825876,86.97345518,171.79,171.78,0.00540093]
[1641297826079,87.23345518,171.79,171.78,0.00540093]
[1641297827074,0.49459907,171.78,171.63,10.3028]
[1641297827674,0.49459907,171.78,171.63,9.8028]
[1641297827874,0.49459907,171.78,171.63,10.3028]
[1641297828479,1.3471,171.77,171.63,10.3028]
[1641297828874,2.1071,171.77,171.63,10.3028]
[1641297829475,2.1071,171.77,171.63,9.8028]
[1641297830377,2.1071,171.77,171.63,8.8028]
[1641297831176,2.1071,171.77,171.63,8.47]
[1641297831476,2.1071,171.77,171.63,8.97]
[1641297831875,1.8471,171.77,171.63,11.68229368]
[1641297832076,1.8471,171.77,171.63,11.94229368]
[1641297832077,1.3471,171.77,171.63,11.94229368]
[1641297832278,79.14874125,171.79,171.63,11.94229368]
[1641297832279,79.14874125,171.79,171.63,21.78002341]
[1641297832478,79.14874125,171.79,171.64,9.59951426]
[1641297832679,79.14874125,171.79,171.65,8.47]
[1641297832879,79.14874125,171.79,171.65,10.39669368]
[1641297833179,76.5146,171.79,171.65,10.65669368]
[1641297833482,76.5146,171.79,171.66,1.42669368]
[1641297833679,22.7452175,171.8,171.67,8.47]
[1641297833879,23.2452175,171.8,171.67,8.97]
[1641297834079,23.2452175,171.8,171.68,1.42669368]
[1641297834280,2.39232651,171.79,171.68,10.39669368]
[1641297834482,2.39232651,171.79,171.68,10.65669368]
[1641297835283,2.65232651,171.79,171.68,10.65669368]
[1641297835684,2.65232651,171.79,171.68,9.23]
[1641297837387,2.65232651,171.79,171.68,10.65669368]
[1641297837586,2.39232651,171.79,171.68,10.65669368]
[1641297842191,2.39232651,171.79,171.68,10.39669368]
[1641297842491,2.65232651,171.79,171.68,10.39669368]
[1641297843991,2.39232651,171.79,171.68,10.65669368]
[1641297844391,23.2915,171.82,171.68,10.65669368]
[1641297844696,23.2915,171.82,171.68,20.25620794]
[1641297845093,23.3039,171.83,171.68,20.25620794]
[1641297845293,23.3039,171.83,171.68,29.11960794]
[1641297845496,2.32643524,171.82,171.68,29.11960794]
[1641297846195,2.32643524,171.82,171.68,134.95960794]
[1641297846897,2.58643524,171.82,171.68,134.95960794]
[1641297847599,2.58643524,171.82,171.69,23.2195]
[1641297847798,2.58643524,171.82,171.7,8.47]
[1641297848002,2.58643524,171.82,171.7,10.15669368]
[1641297848201,2.58643524,171.82,171.7,10.65669368]
[1641297848499,0.26,171.82,171.71,1.42669368]
[1641297848698,0.26,171.82,171.72,8.47]
[1641297848900,25.0523,171.85,171.72,8.97]
[1641297848901,24.0519,171.85,171.72,8.97]
[1641297849104,1.63870822,171.96,171.74,105.84]
[1641297849303,78.0163,171.95,171.75,8.47]
[1641297849500,2.46931375,171.94,171.75,10.15669368]
[1641297849700,2.46931375,171.94,171.76,25.99709368]
[1641297849999,27.51266259,171.94,171.77,8.47]
[1641297850200,27.51266259,171.94,171.78,23.3071]
[1641297850403,27.51266259,171.94,171.79,8.47]
[1641297850601,24.9906,171.93,171.79,8.47]
[1641297850802,24.9906,171.93,171.79,10.65669368]
[1641297851002,25.2506,171.93,171.8,1.42669368]
[1641297851305,25.2506,171.93,171.81,8.47]
[1641297851627,25.2506,171.93,171.81,10.15669368]
[1641297851828,25.2506,171.93,171.81,10.65669368]
[1641297852428,25.2506,171.93,171.81,9.23]
[1641297852631,25.2506,171.93,171.81,8.47]
[1641297852834,25.7506,171.93,171.81,8.97]
[1641297853233,27.1012,171.93,171.81,8.97]
[1641297854034,27.1012,171.93,171.81,8.47]
[1641297858135,26.6012,171.93,171.81,8.97]
[1641297858340,26.6012,171.93,171.81,8.47]
[1641297859544,26.3412,171.93,171.81,8.47]
[1641297859744,27.51266259,171.94,171.81,8.47]
[1641297860044,2.96931375,171.94,171.82,1.42669368]
[1641297860244,2.46931375,171.94,171.83,8.47]
[1641297860444,2.46931375,171.94,171.83,8.97]
[1641297860646,2.46931375,171.94,171.84,1.42669368]
[1641297860847,2.46931375,171.94,171.85,8.47]
[1641297861045,2.46931375,171.94,171.85,8.73]
[1641297861247,2.46931375,171.94,171.85,10.65669368]
[1641297865879,23.0607,171.98,171.85,10.65669368]
[1641297866079,0.26,171.97,171.85,10.39669368]
[1641297866280,0.26,171.97,171.85,8.97]
[1641297866479,23.8207,171.98,171.85,8.47]
[1641297866880,31.54294668,171.97,171.85,8.47]
[1641297867080,31.80294668,171.97,171.85,8.47]
[1641297867383,24.9638,171.96,171.85,8.47]
[1641297867580,25.2238,171.96,171.85,8.47]
[1641297867780,25.7238,171.96,171.85,8.47]
[1641297868780,25.7238,171.96,171.85,8.97]
[1641297868981,25.7238,171.96,171.85,8.47]
[1641297869781,27.15049368,171.96,171.85,8.47]
[1641297869985,35.62049368,171.96,171.8,8.6537]
[1641297870181,35.62049368,171.96,171.78,32.6616]
[1641297870380,35.62049368,171.96,171.78,9.7341]
[1641297870583,35.62049368,171.96,171.78,8.47]
[1641297871681,35.62049368,171.96,171.78,8.73]
[1641297871883,35.62049368,171.96,171.78,8.47]
[1641297872489,35.62049368,171.96,171.78,8.97]
[1641297875789,1.63870822,171.94,171.78,8.97]
[1641297875988,8.47,171.93,171.78,8.97]
[1641297876290,102.0127,171.92,171.78,8.97]
[1641297876590,2.17005694,171.91,171.78,8.47]
[1641297876889,27.48025122,171.9,171.78,8.97]
[1641297877089,23.7569,171.89,171.78,8.97]
[1641297877493,24.5169,171.89,171.78,8.97]
[1641297877692,25.7573,171.89,171.78,8.97]
[1641297877896,25.2573,171.89,171.78,8.97]
[1641297884495,25.2573,171.89,171.78,8.47]
[1641297884698,25.7573,171.89,171.78,8.97]
[1641297885300,27.18399368,171.89,171.78,8.97]
[1641297886803,27.18399368,171.89,171.78,8.47]
[1641297887503,25.7573,171.89,171.78,8.47]
[1641297888505,25.7573,171.89,171.74,17.2473]
[1641297888706,34.2273,171.89,171.74,8.47]
[1641297888906,34.2273,171.89,171.74,8.97]
[1641297890031,34.2273,171.89,171.74,9.23]
[1641297891237,34.2273,171.89,171.74,10.5791]
[1641297891936,33.9673,171.89,171.74,10.5791]
[1641297892536,33.9673,171.89,171.75,23.9304]
[1641297892936,33.9673,171.89,171.75,24.6904]
[1641297893939,33.9673,171.89,171.76,1.3342]
[1641297894139,34.2273,171.89,171.76,1.3342]
[1641297894339,34.2273,171.89,171.76,2.0942]
[1641297897241,34.2273,171.89,171.73,8.8167]
[1641297897442,34.2273,171.89,171.75,0.5]
[1641297897844,34.2273,171.89,171.73,1.7541]
[1641297898042,34.2273,171.89,171.73,25.1655]
[1641297900043,34.2273,171.89,171.73,0.5]
[1641297900343,34.2273,171.89,171.61,12.1390246]
[1641297900344,13.57244828,171.63,171.61,12.1390246]
[1641297900543,7.32025652,171.63,171.62,8.47]
[1641297900848,7.32025652,171.63,171.59,29.37401768]
[1641297901044,7.32025652,171.63,171.62,93.7]
[1641297901646,13.38087045,171.63,171.62,93.7]
[1641297901847,7.32025652,171.63,171.62,93.7]
[1641297902045,7.58025652,171.63,171.62,93.7]
[1641297902650,7.32025652,171.63,171.62,93.7]
[1641297902851,26.93735488,171.71,171.62,94.2]
[1641297903049,6.97662501,171.72,171.62,94.2]
[1641297903453,6.97662501,171.72,171.62,93.7]
[1641297904249,2.40955363,171.71,171.62,93.7]
[1641297904548,3.16955363,171.71,171.62,93.7]
[1641297905950,8.47,171.7,171.62,93.7]
[1641297906348,9.23,171.7,171.62,93.7]
[1641297906750,10.86870822,171.7,171.62,93.7]
[1641297906950,12.2954019,171.7,171.62,93.7]
[1641297907550,1.63870822,171.69,171.62,93.7]
[1641297907752,2.95256323,171.68,171.62,93.7]
[1641297907949,3.71256323,171.68,171.62,93.7]
[1641297909153,3.21256323,171.68,171.62,93.7]
[1641297909753,2.95256323,171.68,171.62,93.7]
[1641297910554,2.95256323,171.68,171.54,78.0471]
[1641297910755,2.95256323,171.68,171.56,0.5]
[1641297911059,3.21256323,171.68,171.56,0.5]
[1641297911255,27.61336323,171.68,171.54,78.5471]
[1641297911858,29.40467434,171.66,171.54,1.8179]
[1641297912056,2.89963495,171.65,171.54,1.8179]
[1641297912456,3.15963495,171.65,171.54,1.8179]
[1641297912658,3.15963495,171.65,171.54,0.76]
[1641297912858,3.15963495,171.65,171.54,8.73]
[1641297913460,8.47,171.64,171.42,22.64475601]
[1641297913662,134.3844,171.64,171.42,2.6078]
[1641297913860,136.57109368,171.64,171.42,2.6078]
[1641297914059,2.83581246,171.62,171.42,2.6078]
[1641297914259,33.2158448,171.58,171.41,530.27742923]
[1641297914460,86.2662,171.57,171.41,530.27742923]
[1641297914861,87.0262,171.57,171.41,530.27742923]
[1641297915061,2.24261669,171.55,171.41,530.27742923]
[1641297915264,8.47,171.54,171.41,530.27742923]
[1641297915466,10.39669368,171.54,171.41,530.27742923]
[1641297915661,2.7147937,171.52,171.37,8.47]
[1641297915864,25.15443278,171.51,171.37,8.47]
[1641297916064,25.41443278,171.51,171.37,8.47]
[1641297916463,27.18073278,171.51,171.37,8.47]
[1641297916666,26.68073278,171.51,171.37,8.47]
[1641297916864,26.68073278,171.51,171.34,1.2253]
[1641297916865,35.15073278,171.51,171.34,9.6953]
[1641297917063,35.65073278,171.51,171.34,9.6953]
[1641297917464,35.15073278,171.51,171.34,9.6953]
[1641297917666,44.39542646,171.51,171.34,8.47]
[1641297918465,1.63870822,171.5,171.34,8.47]
[1641297918664,2.96103566,171.48,171.34,8.47]
[1641297918868,11.43103566,171.48,171.34,8.97]
[1641297919067,11.69103566,171.48,171.34,8.97]
[1641297919465,12.19103566,171.48,171.34,8.97]
[1641297920173,11.93103566,171.48,171.34,8.97]
[1641297920369,11.43103566,171.48,171.34,8.97]
[1641297920971,11.43103566,171.48,171.34,9.23]
[1641297922992,11.69103566,171.48,171.34,9.23]
[1641297923198,11.43103566,171.48,171.34,9.23]
[1641297924794,2.96103566,171.48,171.34,9.23]
[1641297924994,2.96103566,171.48,171.34,10.65669368]
[1641297925195,25.15443278,171.51,171.34,10.65669368]
[1641297925394,25.15443278,171.51,171.35,8.7486]
[1641297925597,25.15443278,171.51,171.36,8.47]
[1641297925795,25.15443278,171.51,171.36,9.89669368]
[1641297925996,25.15443278,171.51,171.36,10.65669368]
[1641297927900,25.15443278,171.51,171.36,19.40499368]
[1641297928199,25.15443278,171.51,171.37,1.42669368]
[1641297928398,2.92076947,171.53,171.37,1.42669368]
[1641297928399,2.92076947,171.53,171.38,8.47]
[1641297928599,2.92076947,171.53,171.38,18.22187232]
[1641297928801,2.92076947,171.53,171.39,1.42669368]
[1641297928999,2.92076947,171.53,171.4,8.47]
[1641297929400,2.92076947,171.53,171.41,1.42669368]
[1641297929602,24.22492783,171.56,171.42,8.47]
[1641297930003,24.22492783,171.56,171.43,1.42669368]
[1641297930203,24.22492783,171.56,171.44,8.47]
[1641297930403,24.22492783,171.56,171.44,8.97]
[1641297930602,24.22492783,171.56,171.45,1.42669368]
[1641297930803,2.48196056,171.55,171.45,1.42669368]
[1641297931003,2.74196056,171.55,171.45,2.18669368]
[1641297931805,2.74196056,171.55,171.45,0.5]
[1641297932004,24.22492783,171.56,171.42,8.97]
[1641297932203,24.22492783,171.56,171.45,1.42669368]
[1641297932406,24.22492783,171.56,171.45,0.5]
[1641297933304,24.48492783,171.56,171.45,1.42669368]
[1641297933506,24.48492783,171.56,171.45,1.68669368]
[1641297933704,24.22492783,171.56,171.45,10.65669368]
[1641297934505,24.22492783,171.56,171.45,9.23]
[1641297934706,24.22492783,171.56,171.45,8.97]
[1641297935109,24.48492783,171.56,171.45,8.97]
[1641297935305,2.39793436,171.55,171.45,8.97]
[1641297935506,2.65793436,171.55,171.45,8.97]
[1641297935705,2.65793436,171.55,171.46,1.42669368]
[1641297935908,2.65793436,171.55,171.46,1.92669368]
[1641297936207,2.65793436,171.55,171.46,2.18669368]
[1641297937007,2.65793436,171.55,171.46,0.76]
[1641297937410,2.65793436,171.55,171.45,9.23]
[1641297939510,24.22492783,171.56,171.45,9.23]
[1641297939709,74.0052,171.6,171.45,9.23]
[1641297939908,74.0052,171.6,171.46,1.42669368]
[1641297940110,74.2652,171.6,171.46,1.68669368]
[1641297940309,74.2652,171.6,171.46,0.76]
[1641297940712,32.44703666,171.59,171.46,0.5]
[1641297940911,32.94703666,171.59,171.45,8.97]
[1641297941109,33.20703666,171.59,171.45,8.97]
[1641297941638,34.54183666,171.59,171.45,8.97]
[1641297942013,34.54183666,171.59,171.45,9.23]
[1641297942611,34.04183666,171.59,171.45,9.23]
[1641297943415,34.54183666,171.59,171.45,9.23]
[1641297944914,34.04183666,171.59,171.45,9.23]
[1641297949347,34.04183666,171.59,171.45,10.65669368]
[1641297949552,34.54183666,171.59,171.45,10.65669368]
[1641297951247,34.54183666,171.59,171.45,10.39669368]
[1641297952848,34.54183666,171.59,171.45,8.97]
[1641297953048,22.9508,171.58,171.45,8.97]
[1641297953550,23.7108,171.58,171.45,8.99371377]
[1641297953750,23.7108,171.58,171.45,9.25371377]
[1641297954449,32.1808,171.58,171.45,0.02371377]
[1641297954651,2.27957117,171.56,171.45,0.02371377]
[1641297954853,31.0882,171.55,171.45,0.02371377]
[1641297955049,3.05885411,171.53,171.45,0.02371377]
[1641297955250,26.95680253,171.51,171.45,0.02371377]
[1641297955448,2.54347053,171.49,171.45,0.02371377]
[1641297955849,2.80347053,171.49,171.45,0.02371377]
[1641297960758,2.54347053,171.49,171.45,0.02371377]
[1641297960958,2.80347053,171.49,171.45,0.02371377]
[1641297961558,2.54347053,171.49,171.45,0.02371377]
[1641297963360,3.04347053,171.49,171.45,0.02371377]
[1641297963561,35.42680253,171.51,171.45,0.02371377]
[1641297964061,26.95680253,171.51,171.45,0.02371377]
[1641297964762,29.77787212,171.51,171.45,0.02371377]
[1641297964967,23.4625,171.5,171.45,0.02371377]
[1641297965366,25.0018,171.5,171.45,0.02371377]
[1641297969269,24.7418,171.5,171.45,0.02371377]
[1641297970670,25.0018,171.5,171.45,0.02371377]
[1641297985919,25.5018,171.5,171.45,0.02371377]
[1641297987020,25.0018,171.5,171.45,0.02371377]
[1641297990925,32.7438,171.5,171.45,0.02371377]
[1641297991126,34.17049368,171.5,171.45,0.02371377]
[1641297991428,40.7138,171.5,171.45,0.02371377]
[1641297991625,33.4718,171.5,171.45,0.02371377]
[1641297992025,33.9718,171.5,171.45,0.02371377]
[1641297992226,33.4718,171.5,171.45,0.02371377]
[1641297992425,33.9718,171.5,171.45,0.02371377]
[1641297996329,33.9718,171.5,171.45,0.00371377]
[1641297998130,35.61050822,171.5,171.45,0.00371377]
[1641297998534,33.9718,171.5,171.45,0.00371377]
[1641297999134,35.39849368,171.5,171.45,0.00371377]
[1641297999534,37.0372019,171.5,171.45,0.00371377]
[1641298000934,3.02883798,171.48,171.45,0.00371377]
[1641298001139,132.6387,171.47,171.45,0.00371377]
[1641298001333,134.56539368,171.47,171.45,0.00371377]
[1641298001535,7.48730761,171.46,171.45,0.00371377]
[1641298001759,17.27130761,171.46,171.45,0.00371377]
[1641298001960,18.03130761,171.46,171.45,0.00371377]
[1641298002161,16.60461393,171.46,171.45,0.00371377]
[1641298003963,18.03130761,171.46,171.45,0.00371377]
[1641298004563,19.67001583,171.46,171.45,0.00371377]
[1641298005366,17.77130761,171.46,171.45,0.00371377]
[1641298005966,16.34461393,171.46,171.45,0.00371377]
[1641298006567,16.60461393,171.46,171.45,0.00371377]
[1641298008565,16.34461393,171.46,171.45,0.00371377]
[1641298008766,17.98332215,171.46,171.45,0.00371377]
[1641298009971,18.24332215,171.46,171.45,0.00371377]
[1641298012773,19.67001583,171.46,171.45,0.00371377]
[1641298013772,18.03130761,171.46,171.45,0.00371377]
[1641298025083,17.77130761,171.46,171.45,0.00371377]
[1641298028011,18.03130761,171.46,171.45,0.00371377]
[1641298029611,27.63815366,171.45,171.29,2.0789]
[1641298029816,8.47,171.44,171.29,2.0789]
[1641298030014,2.29400717,171.42,171.29,2.0789]
[1641298030213,1.3205,171.41,171.29,2.0789]
[1641298030513,1.5805,171.41,171.29,2.0789]
[1641298030713,2.0805,171.41,171.29,2.0789]
[1641298030915,1.5805,171.41,171.29,2.0789]
[1641298033516,2.0805,171.41,171.29,2.0789]
[1641298033817,1.5805,171.41,171.29,2.0789]
[1641298034014,1.3205,171.41,171.29,2.0789]
[1641298038221,1.3205,171.41,171.3,8.47]
[1641298038420,1.3205,171.41,171.3,8.97]
[1641298038732,1.3205,171.41,171.3,9.23]
[1641298047030,1.5805,171.41,171.3,8.97]
[1641298047932,2.0805,171.41,171.3,8.97]
[1641298051036,2.0805,171.41,171.3,9.23]
[1641298052439,1.8205,171.41,171.3,9.23]
[1641298052640,1.3205,171.41,171.3,8.97]
[1641298052842,1.8205,171.41,171.3,8.97]
[1641298053842,2.0805,171.41,171.3,8.97]
[1641298054967,2.0805,171.41,171.3,9.23]
[1641298056869,2.0805,171.41,171.3,8.97]
[1641298057367,2.0805,171.41,171.28,22.8237]
[1641298057566,1.42669368,171.4,171.29,0.5]
[1641298057970,2.18669368,171.4,171.29,0.5]
[1641298058167,2.18669368,171.4,171.25,8.97]
[1641298058368,31.4404897,171.38,171.25,8.97]
[1641298058567,31.7004897,171.38,171.25,8.97]
[1641298058768,32.2004897,171.38,171.25,8.97]
[1641298059268,2.96792725,171.36,171.25,8.97]
[1641298059471,22.7222,171.35,171.25,8.47]
[1641298059668,22.7222,171.35,171.21,134.47688529]
[1641298059869,1.2502,171.34,171.21,134.47688529]
[1641298060068,1.5102,171.34,171.21,134.47688529]
[1641298060369,2.0102,171.34,171.21,8.47]
[1641298060768,2.0102,171.34,171.18,8.47]
[1641298061069,24.4705,171.33,171.18,8.47]
[1641298061469,25.2305,171.33,171.18,8.47]
[1641298061670,8.47,171.32,171.18,8.47]
[1641298061871,28.26096872,171.31,171.18,8.47]
[1641298062071,23.5228,171.3,171.18,8.47]
[1641298062269,2.46198177,171.29,171.18,8.47]
[1641298062669,2.72198177,171.29,171.18,8.47]
[1641298062870,1.2965,171.28,171.18,8.97]
[1641298063073,1.5565,171.28,171.18,8.97]
[1641298064974,2.46198177,171.29,171.18,8.97]
[1641298065374,2.72198177,171.29,171.18,8.97]
[1641298065579,22.6376,171.28,171.18,8.97]
[1641298065978,22.8976,171.28,171.18,9.23]
[1641298066981,104.68980618,171.13,171.12,8.471]
[1641298067182,6.10055004,171.06,171.02,8.5798]
[1641298067382,6.10055004,171.06,170.91,6.10010217]
[1641298067581,6.10055004,171.06,170.92,8.47]
[1641298068088,6.36055004,171.06,170.92,8.47]
[1641298068283,25.1644091,171.05,170.92,35.78467213]
[1641298068481,8.47,171.04,170.92,27.31467213]
[1641298068684,8.47,171.04,170.92,27.81467213]
[1641298069084,6.10055004,171.06,170.92,36.28467213]
[1641298069285,6.10055004,171.06,170.93,2.2430686]
[1641298069483,6.10055004,171.06,170.94,8.47]
[1641298071486,6.36055004,171.06,170.94,8.47]
[1641298071685,29.07730834,171.06,170.94,8.47]
[1641298071885,29.07730834,171.06,170.94,8.97]
[1641298073386,22.9767583,171.06,170.94,8.97]
[1641298074586,22.9767583,171.06,170.94,0.5]
[1641298074987,22.9767583,171.06,170.93,3.0030686]
[1641298075187,22.9767583,171.06,170.93,2.7430686]
[1641298076619,22.9767583,171.06,170.93,3.0030686]
[1641298076790,22.9767583,171.06,170.93,0.5]
[1641298076992,8.47,171.05,170.93,0.5]
[1641298077190,8.47,171.05,170.9,0.5]
[1641298077391,1.2528,171.04,170.87,8.97]
[1641298077593,1.5128,171.04,170.87,8.97]
[1641298077791,1.5128,171.04,170.88,2.56927362]
[1641298077991,1.5128,171.04,170.88,2.54857678]
[1641298078192,1.5128,171.04,170.88,2.87609448]
[1641298078396,2.0128,171.04,170.88,2.87609448]
[1641298078992,2.0128,171.04,170.88,3.13609448]
[1641298080293,1.5128,171.04,170.88,3.13609448]
[1641298080521,1.5128,171.04,170.89,8.47]
[1641298080926,1.2528,171.04,170.89,10.39669368]
[1641298081525,1.2528,171.04,170.89,8.97]
[1641298082126,1.2528,171.04,170.89,9.23]
[1641298082727,1.7528,171.04,170.89,9.23]
[1641298084029,2.0128,171.04,170.89,9.23]
[1641298085132,1.2528,171.04,170.89,9.23]
[1641298085331,7.81931022,171.07,170.89,116.49669368]
[1641298085530,7.81931022,171.07,170.91,2.38898981]
[1641298085731,6.31266459,171.07,170.92,8.47]
[1641298085933,6.31266459,171.07,170.92,10.39669368]
[1641298086134,6.31266459,171.07,170.93,23.66108698]
[1641298086333,6.31266459,171.07,170.94,11.17124111]
[1641298086533,6.31266459,171.07,170.94,11.43124111]
[1641298086733,6.31266459,171.07,170.94,11.93124111]
[1641298088134,6.57266459,171.07,170.94,11.93124111]
[1641298088335,6.31266459,171.07,170.94,11.93124111]
[1641298089436,6.31266459,171.07,170.94,11.67124111]
[1641298090637,6.31266459,171.07,170.95,1.42669368]
[1641298090845,6.31266459,171.07,170.97,10.34634503]
[1641298091241,6.31266459,171.07,170.97,10.84634503]
[1641298091438,6.31266459,171.07,170.97,11.10634503]
[1641298094446,6.31266459,171.07,170.97,3.51411563]
[1641298094649,6.31266459,171.07,170.97,3.25411563]
[1641298095950,6.31266459,171.07,170.97,3.51411563]
[1641298096248,6.31266459,171.07,170.97,3.25411563]
[1641298097549,6.31266459,171.07,170.97,3.51411563]
[1641298098350,6.31266459,171.07,170.98,8.47]
[1641298098551,6.31266459,171.07,170.98,10.15669368]
[1641298098750,6.31266459,171.07,170.98,10.65669368]
[1641298101987,6.31266459,171.07,171.0,9.95713948]
[1641298102484,6.31266459,171.07,171.0,10.71713948]
[1641298104388,6.31266459,171.07,171.0,20.61383316]
[1641298107295,6.31266459,171.07,171.0,18.01900432]
[1641298108294,6.31266459,171.07,171.0,20.78227412]
[1641298111301,6.31266459,171.07,171.0,79.28227412]
[1641298114703,6.31266459,171.07,171.02,58.5]
[1641298114905,6.31266459,171.07,171.03,11.02394146]
[1641298115107,0.00266459,171.07,171.04,23.89100574]
[1641298115308,0.00266459,171.07,171.04,33.78769942]
[1641298115504,0.00266459,171.07,171.04,34.54769942]
[1641298115704,0.00266459,171.07,171.05,1.42669368]
[1641298115906,0.00266459,171.07,171.06,52.16361185]
[1641298116105,0.00266459,171.07,171.06,11.42361185]
[1641298116305,0.00266459,171.07,171.06,13.35030553]
[1641298116707,0.00266459,171.07,171.06,10.39669368]
[1641298117507,0.00266459,171.07,171.06,8.97]
[1641298117935,0.00266459,171.07,171.06,0.5]
[1641298118134,0.00266459,171.07,171.01,8.47]
[1641298118532,0.00266459,171.07,170.99,1.42669368]
[1641298119133,0.00266459,171.07,171.0,2.60079136]
[1641298119333,0.00266459,171.07,171.0,3.10079136]
[1641298123338,0.00266459,171.07,171.0,3.36079136]
[1641298123737,0.00266459,171.07,171.0,0.76]
[1641298123936,0.00266459,171.07,171.0,0.26]
[1641298124137,0.00266459,171.07,170.98,9.23]
[1641298124538,0.00266459,171.07,170.98,10.65669368]
[1641298124741,0.00266459,171.07,170.99,2.98001453]
[1641298124939,0.00266459,171.07,170.99,3.74001453]
[1641298125538,0.00266459,171.07,170.99,3.48001453]
[1641298126540,0.00266459,171.07,170.99,4.90670821]
[1641298127346,0.00266459,171.07,170.99,5.16670821]
[1641298128045,0.00266459,171.07,171.0,8.47]
[1641298128445,0.00266459,171.07,171.01,1.42669368]
[1641298128643,0.00266459,171.07,171.02,2.58578241]
[1641298128942,0.00266459,171.07,171.02,3.08578241]
[1641298132345,0.00266459,171.07,170.99,8.47]
[1641298132546,0.00266459,171.07,171.01,0.5]
[1641298133145,0.00266459,171.07,170.99,8.97]
[1641298133347,0.00266459,171.07,171.0,3.01667825]
[1641298133546,0.00266459,171.07,171.0,3.27667825]
[1641298133746,0.00266459,171.07,171.0,3.77667825]
[1641298134548,0.00266459,171.07,171.0,3.51667825]
[1641298135848,0.00266459,171.07,171.0,3.77667825]
[1641298138149,0.00266459,171.07,171.0,3.27667825]
[1641298138349,0.00266459,171.07,171.0,3.77667825]
[1641298144862,0.00266459,171.07,171.0,0.76]